Cogmind - Beta 11.1 @@@ ROGUE MODE // 2022.04.24 @ 17:03:53 // Winter2019/RPGLIKE Player: Rainynight Result: Self-destructed Performance ------------- Evolutions (1) 500 Regions Visited (4) 800 Robots Destroyed (6) 30 Value Destroyed (171) 171 Prototype IDs (0) 0 Alien Tech Used (0) 0 Bonus (0) 0 TOTAL SCORE: 1501 Bonus ------- None Cogmind --------- Core Integrity 131/600 Matter 280/300 Energy 250/250 System Corruption 0% Temperature Cool (0) Movement Rolling (100) Location -9/Mines Parts ------- > --- POWER (1) -------- Ion Engine > --- PROPULSION (2) --- Compact Wheel > --- UTILITY (2) ------ Improved Targeting Computer Hacking Suite > --- WEAPON (2) ------- EM Pulse Gun > --- INVENTORY (1) ---- Light Ion Engine Peak State ------------ > --- POWER ------------ Ion Engine > --- PROPULSION ------- Compact Wheel > --- UTILITY ---------- Improved Targeting Computer Hacking Suite > --- WEAPON ----------- EM Pulse Gun EM Pulse Gun > --- INVENTORY -------- Light Ion Engine [Rating: 9] Favorites ----------- Power Light Ion Engine Engine Light Ion Engine Propulsion Compact Wheel Wheel Compact Wheel Utility Hacking Suite Processor Improved Targeting Computer Hackware Hacking Suite Weapon EM Pulse Gun Energy Gun EM Pulse Gun Build | -11 -10 -10 -9 -9 ------- Run | Scr Mat Min Mat Min Slots Evolved 3 | 2 . . 1 . Power . | . . . . . Propulsion 1 | . . . 1 . Utility 1 | 1 . . . . Weapon 1 | 1 . . . . Parts Attached 7 | 4 1 . 2 . Power 2 | 1 . . 1 . Engine 2 | 1 . . 1 . Core . | . . . . . Reactor . | . . . . . Propulsion 1 | 1 . . . . Treads . | . . . . . Leg . | . . . . . Wheel 1 | 1 . . . . Hover . | . . . . . Flight . | . . . . . Utility 2 | . 1 . 1 . Device . | . . . . . Storage . | . . . . . Processor 1 | . . . 1 . Hackware 1 | . 1 . . . Protection . | . . . . . Artifact . | . . . . . Weapon 2 | 2 . . . . Energy Gun 2 | 2 . . . . Energy Cannon . | . . . . . Ballistic Gun . | . . . . . Ballistic Cannon . | . . . . . Launcher . | . . . . . Special Weapon . | . . . . . Impact Weapon . | . . . . . Slashing Weapon . | . . . . . Piercing Weapon . | . . . . . Special Melee Weapon . | . . . . . Unidentified Prototypes . | . . . . . Parts Lost . | . . . . . Power . | . . . . . Propulsion . | . . . . . Utility . | . . . . . Weapon . | . . . . . Highest Loss Streak . | . . . . . To Critical Strikes . | . . . . . Average Slot Usage (%) 73 | . 70 83 72 81 Engine 14 | . 16 16 14 14 Wheel 14 | . 16 16 14 14 Processor 2 | . . . 1 14 Hackware 11 | . 4 16 14 14 Energy Gun 29 | . 33 33 28 24 Naked Turns . | . . . . . Heaviest Build 9 | 7 7 7 9 9 Greatest Support 16 | 16 16 16 16 16 Greatest Overweight (x) . | . . . . . Average Overweight (x) . | . . . . . Largest Inventory Capacity 1 | . . . 1 1 Average Capacity . | . . . . 1 Most Carried 1 | . . . 1 1 Average Carried . | . . . . 1 Final Capacity 1 | . . . 1 1 Final Carried 1 | . . . 1 1 Class Distribution -------------------- 100% | Mutant Dominant Class ---------------- Mutant | -10/Materials Mutant | -10/Mines Mutant | -9/Materials Mutant | -9/Mines Resources | -11 -10 -10 -9 -9 ----------- Run | Scr Mat Min Mat Min Matter Collected 250 | 138 63 . 49 . Remotely . | . . . . . Salvage Created 385 | . 79 . 278 28 Parts 16 | . 7 . 9 . Haulers Intercepted . | . . . . . Recyclers Shooed . | . . . . . Parts Field Recycled . | . . . . . Retrieved Matter . | . . . . . Parts Self-Destructed . | . . . . . Prevented . | . . . . . Kills | -11 -10 -10 -9 -9 ------- Run | Scr Mat Min Mat Min Combat Hostiles Destroyed 5 | . . . 4 1 Guns 3 | . . . 2 1 AOE 1 | . . . 1 . Classes Destroyed 4 | . 2 . 1 1 Recycler 1 | . 1 . . . Operator 1 | . 1 . . . Grunt 4 | . . . 4 . Assembled 1 | . . . . 1 Best Kill Streak 3 | . 2 . 3 1 Combat Bots Only 3 | . . . 3 1 Max Kills in Single Turn 1 | . 1 . 1 1 Gunslinging . | . . . . . Exploded 1 | . . . 1 . Melee . | . . . . . Uniques/NPCs Destroyed . | . . . . . Combat | -11 -10 -10 -9 -9 -------- Run | Scr Mat Min Mat Min Damage Taken 566 | . 8 . 209 349 Core 469 | . 6 . 175 288 Absorbed by Shields . | . . . . . Redirected to Core 328 | . 6 . 105 217 Core Remaining (%) 99 | 100 . 99 . . Volleys Fired 24 | . 3 . 14 7 Largest 2 | . 2 . 2 2 Hottest 80 | . 80 . 80 80 Shots Fired 44 | . 6 . 28 10 Gun 44 | . 6 . 28 10 Cannon . | . . . . . Launcher . | . . . . . Special . | . . . . . Kinetic . | . . . . . Thermal . | . . . . . Explosive . | . . . . . Electromagnetic 44 | . 6 . 28 10 Robot Hit Streak 18 | . 3 . 15 18 Robot Miss Streak 3 | . 3 . 1 1 Penetration Max . | . . . . . Secondary Targets 1 | . . . 1 . Max Gunslinging Chain 1 | . . . 1 . Shots Hit Robots 35 | . 3 . 23 9 Core Hits 11 | . 3 . 7 1 Critical Kills . | . . . . . Critical Parts Destroyed . | . . . . . Critical Strikes 1 | . . . . 1 Corrupt 1 | . . . . 1 Melee Attacks . | . . . . . Impact . | . . . . . Slashing . | . . . . . Piercing . | . . . . . Sneak Attacks . | . . . . . Combat Hostiles . | . . . . . Follow-up Attacks . | . . . . . Damage Inflicted 573 | . 90 . 380 103 Guns 462 | . 43 . 316 103 Cannons . | . . . . . Explosions 111 | . 47 . 64 . Melee . | . . . . . Ramming . | . . . . . Kinetic . | . . . . . Thermal 111 | . 47 . 64 . Explosive . | . . . . . Electromagnetic 462 | . 43 . 316 103 Impact . | . . . . . Slashing . | . . . . . Piercing . | . . . . . Highest Corruption . | . . . . . Average Corruption . | . . . . . Corruption Purged . | . . . . . Corruption Blocked . | . . . . . Overload Shots . | . . . . . Overflow Damage . | . . . . . Projectiles . | . . . . . Explosions . | . . . . . Melee . | . . . . . Knockbacks . | . . . . . Impact . | . . . . . Kinetic . | . . . . . Secondary . | . . . . . Self-Inflicted Damage 9 | . 9 . . . Shots 1 | . 1 . . . Rammed . | . . . . . Targets Rammed . | . . . . . Kicked . | . . . . . Crushed . | . . . . . Highest Temperature 24 | . 6 . 24 . Average Temperature 18 | . 6 . 19 . Received Heat Transfer 132 | . . . 132 . Siege Activations . | . . . . . Robots Corrupted 1 | . . . 1 . Combat Hostiles 1 | . . . 1 . Parts Fried 2 | . . . 2 . Impact Corruptions . | . . . . . Robots Melted . | . . . . . Combat Hostiles . | . . . . . Parts Melted . | . . . . . Heat Transferred 100 | . 50 . 50 . Parts Sabotaged . | . . . . . Parts Stolen . | . . . . . Parts Stripped . | . . . . . Power Chain Reactions 2 | . 1 . 1 . Missiles Intercepted . | . . . . . Alert | -11 -10 -10 -9 -9 ------- Run | Scr Mat Min Mat Min Peak Influence 122 | . 55 21 122 47 Initial 47 | . . 21 7 47 Average 45 | . 16 21 75 47 Maximum Alert Level . | . . . . . Low Security (%) 100 | 100 100 100 100 100 Level 1 . | . . . . . Level 2 . | . . . . . Level 3 . | . . . . . Level 4 . | . . . . . Level 5 . | . . . . . High Security . | . . . . . Max Security . | . . . . . Squads Dispatched 1 | . . . 1 . Investigation . | . . . . . Extermination . | . . . . . Reinforcement 1 | . . . 1 . Assault . | . . . . . Garrison . | . . . . . Intercept . | . . . . . Searches Triggered . | . . . . . Construction Impeded . | . . . . . Haulers Reinforced . | . . . . . Active Scanning Responses . | . . . . . Cargo Convoy Interrupts . | . . . . . Stealth | -11 -10 -10 -9 -9 --------- Run | Scr Mat Min Mat Min Distress Signals 2 | . . . 2 . Communications Jammed . | . . . . . Distress Signals . | . . . . . Times Spotted 30 | . 4 . 8 18 Peak Tracking Total 18 | . 2 . 5 18 Tactical Retreats 1 | . . . . 1 Traps | -11 -10 -10 -9 -9 ------- Run | Scr Mat Min Mat Min Traps Triggered . | . . . . . Indirectly . | . . . . . Trap Hack Attempts . | . . . . . Triggered . | . . . . . Disarmed . | . . . . . Reprogrammed . | . . . . . Reused . | . . . . . Traps Extracted . | . . . . . Installed . | . . . . . Triggered . | . . . . . Machines | -11 -10 -10 -9 -9 ---------- Run | Scr Mat Min Mat Min Machines Disabled . | . . . . . Max in Single Turn . | . . . . . Machines Sabotaged . | . . . . . Garrisons Compromised . | . . . . . Overloaded Fab Kills . | . . . . . Hacking | -11 -10 -10 -9 -9 --------- Run | Scr Mat Min Mat Min Machines Accessed 3 | . 2 . 1 . Terminals 3 | . 2 . 1 . Fabricators . | . . . . . Repair Stations . | . . . . . Recycling Units . | . . . . . Scanalyzers . | . . . . . Garrison Access . | . . . . . Total Hacks 10 | . 6 . 4 . Successful 6 | . 4 . 2 . Failed 4 | . 2 . 2 . Catastrophic 1 | . . . 1 . Database Lockouts . | . . . . . Manual 7 | . 4 . 3 . Terminals 10 | . 6 . 4 . Fabricators . | . . . . . Repair Stations . | . . . . . Recycling Units . | . . . . . Scanalyzers . | . . . . . Garrison Access . | . . . . . Terminal Hacks 6 | . 4 . 2 . Branch Access Points 2 | . 1 . 1 . Locate Traps 3 | . 2 . 1 . Hauler Manifests 1 | . 1 . . . Fabricator Hacks . | . . . . . Repair Station Hacks . | . . . . . Recycling Unit Hacks . | . . . . . Scanalyzer . | . . . . . Garrison Access Hacks . | . . . . . Unauthorized Hacks . | . . . . . Terminals . | . . . . . Fabricators . | . . . . . Repair Stations . | . . . . . Recycling Units . | . . . . . Scanalyzers . | . . . . . Garrison Access . | . . . . . Data Cores Recovered 1 | . 1 . . . Used . | . . . . . Hacking Detections 3 | . 2 . 1 . Full Trace Events 1 | . . . 1 . Feedback Events . | . . . . . Feedback Blocked . | . . . . . Robot Schematics Acquired . | . . . . . Robots Built . | . . . . . Authchips . | . . . . . Time . | . . . . . Total Robot Build Rating . | . . . . . Part Schematics Acquired . | . . . . . Parts Built . | . . . . . Authchips . | . . . . . Time . | . . . . . Total Part Build Rating . | . . . . . Parts Repaired . | . . . . . Time . | . . . . . Parts Recycled . | . . . . . Recycled Matter . | . . . . . Retrieved Matter . | . . . . . Retrieved Components . | . . . . . Parts Scanalyzed . | . . . . . Part Schematics Acquired . | . . . . . Parts Damaged . | . . . . . Bothacking | -11 -10 -10 -9 -9 ------------ Run | Scr Mat Min Mat Min Used RIF Installer . | . . . . . Robots Hacked . | . . . . . Non-combat . | . . . . . Combat . | . . . . . Robot Hacks Applied . | . . . . . Relay Couplers Released . | . . . . . Fabnet Peak Effective % . | . . . . . Robots Rewired . | . . . . . Allies Hacked . | . . . . . Hacks Repelled . | . . . . . Allies | -11 -10 -10 -9 -9 -------- Run | Scr Mat Min Mat Min Total Allies . | . . . . . Largest Group . | . . . . . Highest-Rated Group . | . . . . . Highest-Rated Ally . | . . . . . Total Orders . | . . . . . Ally Attacks . | . . . . . Total Damage . | . . . . . Kills . | . . . . . Allies Corrupted . | . . . . . Allies Melted . | . . . . . Intel | -11 -10 -10 -9 -9 ------- Run | Scr Mat Min Mat Min Robot Analysis Total . | . . . . . Derelict Logs Recovered . | . . . . . Drone Launches . | . . . . . Drone Recoveries . | . . . . . Exploration | -11 -10 -10 -9 -9 ------------- Run | Scr Mat Min Mat Min Turns Passed 374 | 32 115 12 173 42 Spaces Moved 284 | 28 105 13 113 25 Core 4 | 4 . . . . Treads . | . . . . . Legs . | . . . . . Wheels 280 | 24 105 13 113 25 Hover . | . . . . . Flight . | . . . . . Fastest Speed 50 | 50 100 100 100 100 Average Speed 99 | 92 100 100 100 100 Slowest Speed 100 | 100 100 100 100 100 Overloaded Moves . | . . . . . Propulsion Burnouts . | . . . . . Robots Hopped . | . . . . . Cave-ins Triggered . | . . . . . Exploration Rate (%) 12 | 3 25 8 17 9 Regions Visited 4 Branch Regions 2 Pre-discovered Areas . | . . . . . Known Exits Taken 2 | . 1 . 1 . Unknown Exits Taken 2 | 1 . 1 . . Scrap Searched . | . . . . . Spaces Dug . | . . . . . Terrain Destroyed 9 | . 4 . 5 . Melee . | . . . . . Projectile . | . . . . . AOE 9 | . 4 . 5 . Terrain Rammed . | . . . . . Walls Destroyed . | . . . . . Machines Disabled . | . . . . . Actions | -11 -10 -10 -9 -9 --------- Run | Scr Mat Min Mat Min Total 327 | 31 108 12 144 32 Wait 16 | . . . 16 . Move 280 | 27 104 12 112 25 Hop . | . . . . . Pick Up . | . . . . . Fast Attach 6 | 4 1 . 1 . Attach . | . . . . . Detach . | . . . . . Swap 1 | . . . 1 . Drop . | . . . . . Fire 24 | . 3 . 14 7 Melee . | . . . . . Ram . | . . . . . Kick . | . . . . . Crush . | . . . . . Escape Stasis . | . . . . . Rewire . | . . . . . Trap . | . . . . . Miscellaneous . | . . . . . Route ------- -11/Scrapyard -10/Materials -10/Mines -9/Materials (discovered 4 exits: *Min x2 / Sto x2) -9/Mines History --------- Turn | Location | Event 1 | -11/Scrapyard | Upgraded with Utility slot (x1) 1 | -11/Scrapyard | Upgraded with Weapon slot (x1) 8 | -11/Scrapyard | Discovered new exit (range 15) 33 | -11/Scrapyard | Entered Materials 101 | -10/Materials | Identified exit to Mines 148 | -10/Materials | Entered Mines 148 | -10/Mines | Discovered new exit (range 15) 160 | -10/Mines | Entered Materials 162 | -9/Materials | Reached level 2 162 | -9/Materials | Upgraded with Propulsion slot (x1) 236 | -9/Materials | Identified exit to Mines 236 | -9/Materials | Identified exit to Storage 333 | -9/Materials | Entered Mines 335 | -9/Mines | Reached level 3 337 | -9/Mines | Assembled infested the area 340 | -9/Mines | Build established: Mutant 357 | -9/Mines | Core integrity fell below 50% 375 | -9/Mines | Self-destructed Last Messages --------------- 00299_ Door malfunctions. 00300_ K-01 Serf collects debris. 00302_ U-05 Engineer repairs door. 00303_ K-01 Serf collects debris. 00319_ Acquired Imp. Targeting Computer. 00328_ W-16 Scout sends out distress signal. 00330_ K-01 Serf collects debris. 00331_ W-16 Scout sends out distress signal. 00333_ K-01 Serf collects debris. LOCATION=MINES GOAL=ESCAPE Something is scanning the area. 00335_ Reached level 3. 00337_ ALERT: Infestation in the mines, dispatching Demolisher response squad. 00355_ Protomatter-9 decays. 00364_ Destroyed Asb. Hover Unit. 00364_ as-45926 destroyed. 00366_ EM Pulse Gun severed. 00373_ Destroyed Asb. Hover Unit. Map ----- +----------------------------------------------------+ | ?????????????????????????????????????????????????? | | ?????????????????????????????????????????????????? | | ?????????????????????????????????????????????????? | | ?????????????????????????????????????????????????? | | ?????????????????????????????????????????????????? | | ?????????????????????????????????????????????????? | | ?????????????????????????????????????????????????? | | ?????????????????????????????????????????????????? | | ?????????????????????????????????????????????????? | | ?????????????????????????????????????????????????? | | ?????????????????????????????????????????????????? | | ???????????????? "???????????????????????????????? | | ???????????????? "???????????####????????????????? | | ????????????????? ???????##?## ##???????????????? | | ????????????????? ##?????? ## ###?????????????? | | ????????????????? $?????? ####??????????? | | ?????????????????=% ?????? ???????????? | | ?????????????????#%#??????# # #????????????? | | ?????????????????# #??????# ## #?????????????? | | ????????????????##*#??????# ## #??????????????? | | ???????????????## ##?????# ## #??????????????? | | ??????# ###### ##????# #??????????????? | | ???????# ##???# ## #??????????????? | | ???????# #???# ### #??????????????? | | ?????????######### ##### #?## #??????????????? | | ?????????????????# a a@a #??####??????????????? | | ?????????????????## ########????????????????????? | | ??????????????????####???????????????????????????? | | ?????????????????????????????????????????????????? | | ?????????????????????????????????????????????????? | | ?????????????????????????????????????????????????? | | ?????????????????????????????????????????????????? | | ?????????????????????????????????????????????????? | | ?????????????????????????????????????????????????? | | ?????????????????????????????????????????????????? | | ?????????????????????????????????????????????????? | | ?????????????????????????????????????????????????? | | ?????????????????????????????????????????????????? | | ?????????????????????????????????????????????????? | | ?????????????????????????????????????????????????? | | ?????????????????????????????????????????????????? | | ?????????????????????????????????????????????????? | | ?????????????????????????????????????????????????? | | ?????????????????????????????????????????????????? | | ?????????????????????????????????????????????????? | | ?????????????????????????????????????????????????? | | ?????????????????????????????????????????????????? | | ?????????????????????????????????????????????????? | | ?????????????????????????????????????????????????? | | ?????????????????????????????????????????????????? | +----------------------------------------------------+ Best States ------------- Heat Dissipation 37 Energy Generation 15 Energy Capacity 250 Matter Stores 300 Matter Capacity 300 Sight Range 16 Terrain Scan Density 10 Evasion (%) 40 Targeting Accuracy 6 Offensive Hacking 10 Item Schematics ----------------- None Robot Schematics ------------------ None Fabricated ------------ Nothing Alien Tech Used ----------------- None Achievements -------------- None Challenges ------------ None RPGLIKE | -11 -10 -10 -9 -9 --------- Run | Scr Mat Min Mat Min Levels Raised 2 | . . . 1 1 XP Earned 6025 | 3000 40 500 1985 500 XP Spent 3670 | 2920 . . 750 . Upgrades 10 | 8 . . 2 . Propulsion Slot 1 | . . . 1 . Utility Slot 1 | 1 . . . . Weapon Slot 1 | 1 . . . . Heat Dissipation 2 | 2 . . . . Energy Generation 1 | 1 . . . . Inventory Capacity 1 | . . . 1 . Ranged Accuracy 3 | 3 . . . . Protomatter Created . | . . . . . Protomatter Decayed 25 | . . . . 25 Game ------ Seed HardlightPhasingPenetrator Manual? 0 Play Time 00:04:52 Cumulative 106.1 hours Start 2022.04.24 @ 16:59:39 End 2022.04.24 @ 17:03:53 Sessions 1 Manual Loads 0 Difficulty Rogue Special Mode Winter2019/RPGLIKE Game No. 136 Rogue 136 Adventurer 0 Explorer 0 Win Type - Total 4 Types 4/0/0/0/0/0/0/0/0 Lore% 56 Gallery% 60 Achievement% 49 Wizard Run 0 Options --------- ASCII 1 Keyboard 1 Movement Numpad Keybinds 0 Fullscreen 1 Font 18/X11 Map View 76x50 Tactical HUD 1 Map Filters NONE Filters NONE Steam 1 RUN: 292eeda3-8d04-4609-9ac8-d88a1bbcb5d5